[Event "Titled Tuesday Blitz March 08 Late 2022"]
[White "Djordjevic, Vuk"]
[Black "Koellner, Ruben Gideon"]
[WhiteFideId "902098"]
[BlackFideId "12993093"]
[WhiteElo "2463"]
[BlackElo "2429"]
[Result "0-1"]
[Round "06"]
[TimeControl "180+1"]
[Date "2022.03.08"]
[WhiteClock "0:00:06"]
[BlackClock "0:00:08"]

1. d4 {[%clk 0:03:00]}  d6 {[%clk 0:02:59]} 2. Bg5 {[%clk 0:03:00]}  Nd7 {[%clk 0:02:59]} 3. e3 {[%clk 0:03:00]}  Ngf6 {[%clk 0:02:59]} 4. Nf3 {[%clk 0:03:01]}  h6 {[%clk 0:02:59]} 5. Bh4 {[%clk 0:03:01]}  e5 {[%clk 0:02:59]} 6. c4 {[%clk 0:03:01]}  Be7 {[%clk 0:02:59]} 7. Nc3 {[%clk 0:03:01]}  O-O {[%clk 0:02:59]} 8. Be2 {[%clk 0:03:01]}  exd4 {[%clk 0:02:59]} 9. exd4 {[%clk 0:02:59]}  Re8 {[%clk 0:02:59]} 10. O-O {[%clk 0:02:59]}  Nf8 {[%clk 0:02:59]} 11. h3 {[%clk 0:02:56]}  Ng6 {[%clk 0:02:57]} 12. Bg3 {[%clk 0:02:56]}  Nh5 {[%clk 0:02:56]} 13. Bd3 {[%clk 0:02:42]}  Nxg3 {[%clk 0:02:55]} 14. fxg3 {[%clk 0:02:42]}  Bf6 {[%clk 0:02:54]} 15. Nd5 {[%clk 0:02:39]}  c6 {[%clk 0:02:51]} 16. Bxg6 {[%clk 0:02:33]}  cxd5 {[%clk 0:02:46]} 17. Bd3 {[%clk 0:02:31]}  dxc4 {[%clk 0:02:44]} 18. Bxc4 {[%clk 0:02:32]}  Qb6 {[%clk 0:02:43]} 19. Qd2 {[%clk 0:02:31]}  Be6 {[%clk 0:02:40]} 20. Bxe6 {[%clk 0:02:30]}  Rxe6 {[%clk 0:02:41]} 21. Rf2 {[%clk 0:02:22]}  Rae8 {[%clk 0:02:40]} 22. Rd1 {[%clk 0:02:16]}  Re4 {[%clk 0:02:40]} 23. Qd3 {[%clk 0:02:12]}  Re3 {[%clk 0:02:33]} 24. Qc4 {[%clk 0:02:09]}  R8e4 {[%clk 0:02:21]} 25. Qc8+ {[%clk 0:01:56]}  Re8 {[%clk 0:02:20]} 26. Qf5 {[%clk 0:01:48]}  Re2 {[%clk 0:02:10]} 27. Rd2 {[%clk 0:01:40]}  R2e7 {[%clk 0:01:53]} 28. g4 {[%clk 0:01:36]}  Qc7 {[%clk 0:01:41]} 29. h4 {[%clk 0:01:30]}  Qd7 {[%clk 0:01:28]} 30. Qxd7 {[%clk 0:01:06]}  Rxd7 {[%clk 0:01:28]} 31. g5 {[%clk 0:01:07]}  hxg5 {[%clk 0:01:27]} 32. hxg5 {[%clk 0:01:07]}  Bd8 {[%clk 0:01:27]} 33. Rfe2 {[%clk 0:01:07]}  Rde7 {[%clk 0:01:26]} 34. Kf2 {[%clk 0:01:02]}  Bb6 {[%clk 0:01:24]} 35. Rxe7 {[%clk 0:00:54]}  Rxe7 {[%clk 0:01:25]} 36. Re2 {[%clk 0:00:54]}  Rc7 {[%clk 0:01:24]} 37. Ke3 {[%clk 0:00:48]}  Kh7 {[%clk 0:01:22]} 38. Ke4 {[%clk 0:00:47]}  Re7+ {[%clk 0:01:17]} 39. Kd3 {[%clk 0:00:46]}  Rxe2 {[%clk 0:01:17]} 40. Kxe2 {[%clk 0:00:46]}  Kg6 {[%clk 0:01:18]} 41. Ke3 {[%clk 0:00:42]}  Kf5 {[%clk 0:01:18]} 42. Nd2 {[%clk 0:00:42]}  d5 {[%clk 0:01:12]} 43. Nf3 {[%clk 0:00:41]}  Bc7 {[%clk 0:01:12]} 44. Ne1 {[%clk 0:00:27]}  Kxg5 {[%clk 0:01:09]} 45. Kf3 {[%clk 0:00:26]}  Bd6 {[%clk 0:01:06]} 46. Nc2 {[%clk 0:00:25]}  Kf5 {[%clk 0:01:00]} 47. g4+ {[%clk 0:00:22]}  Ke6 {[%clk 0:01:01]} 48. Ne3 {[%clk 0:00:22]}  f6 {[%clk 0:00:58]} 49. Nf5 {[%clk 0:00:21]}  g6 {[%clk 0:00:55]} 50. Ne3 {[%clk 0:00:20]}  f5 {[%clk 0:00:54]} 51. gxf5+ {[%clk 0:00:17]}  gxf5 {[%clk 0:00:55]} 52. Ng2 {[%clk 0:00:17]}  Kf6 {[%clk 0:00:51]} 53. Ne3 {[%clk 0:00:17]}  Ke6 {[%clk 0:00:46]} 54. Ng2 {[%clk 0:00:17]}  Bc7 {[%clk 0:00:42]} 55. Ke3 {[%clk 0:00:18]}  a6 {[%clk 0:00:36]} 56. Kf3 {[%clk 0:00:16]}  Bb8 {[%clk 0:00:35]} 57. Ke3 {[%clk 0:00:15]}  Kf6 {[%clk 0:00:34]} 58. Kf3 {[%clk 0:00:14]}  Ba7 {[%clk 0:00:29]} 59. Ke3 {[%clk 0:00:05]}  Bb8 {[%clk 0:00:19]} 60. Kf3 {[%clk 0:00:04]}  Bc7 {[%clk 0:00:17]} 61. Ne3 {[%clk 0:00:03]}  Ke6 {[%clk 0:00:17]} 62. Ng2 {[%clk 0:00:03]}  b5 {[%clk 0:00:15]} 63. b3 {[%clk 0:00:03]}  Bd6 {[%clk 0:00:13]} 64. Ke3 {[%clk 0:00:04]}  Bg3 {[%clk 0:00:11]} 65. Kf3 {[%clk 0:00:04]}  Bh2 {[%clk 0:00:11]} 66. Kf2 {[%clk 0:00:03]}  f4 {[%clk 0:00:09]} 67. Kf3 {[%clk 0:00:03]}  Kf5 {[%clk 0:00:09]} 68. Nh4+ {[%clk 0:00:02]}  Kg5 {[%clk 0:00:08]} 69. Ng2 {[%clk 0:00:03]}  Bg3 {[%clk 0:00:09]} 70. Ke2 {[%clk 0:00:01]}  Kg4 {[%clk 0:00:09]} 71. Kd3 {[%clk 0:00:02]}  Kf3 {[%clk 0:00:07]} 72. Nxf4 {[%clk 0:00:01]}  Bxf4 {[%clk 0:00:07]} 73. Kc3 {[%clk 0:00:01]}  Bd6 {[%clk 0:00:07]} 74. Kb2 {[%clk 0:00:01]}  Ke4 {[%clk 0:00:07]} 75. Kc3 {[%clk 0:00:02]}  Ke3 {[%clk 0:00:07]} 76. Kc2 {[%clk 0:00:03]}  Kxd4 {[%clk 0:00:07]} 77. Kb2 {[%clk 0:00:03]}  Ke3 {[%clk 0:00:07]} 78. b4 {[%clk 0:00:04]}  Bxb4 {[%clk 0:00:07]} 79. Kb3 {[%clk 0:00:04]}  Bc5 {[%clk 0:00:08]} 80. Kb2 {[%clk 0:00:04]}  d4 {[%clk 0:00:09]} 81. Kc2 {[%clk 0:00:05]}  d3+ {[%clk 0:00:10]} 82. Kd1 {[%clk 0:00:04]}  Ba3 {[%clk 0:00:10]} 83. Ke1 {[%clk 0:00:03]}  d2+ {[%clk 0:00:10]} 84. Kd1 {[%clk 0:00:04]}  a5 {[%clk 0:00:10]} 85. Kc2 {[%clk 0:00:04]}  Ke2 {[%clk 0:00:11]} 86. Kc3 {[%clk 0:00:05]}  Bb4+ {[%clk 0:00:10]} 87. Kb2 {[%clk 0:00:04]}  d1=Q {[%clk 0:00:08]} 88. a3 {[%clk 0:00:04]}  Qd2+ {[%clk 0:00:08]} 89. Kb3 {[%clk 0:00:04]}  Qc3+ {[%clk 0:00:08]} 90. Ka2 {[%clk 0:00:05]}  Qxa3+ {[%clk 0:00:08]} 91. Kb1 {[%clk 0:00:05]}  Qb3+ {[%clk 0:00:07]} 92. Kc1 {[%clk 0:00:05]}  Qc3+ {[%clk 0:00:07]} 93. Kb1 {[%clk 0:00:05]}  Qd2 {[%clk 0:00:07]} 94. Ka1 {[%clk 0:00:06]}  Bc3+ {[%clk 0:00:07]} 95. Kb1 {[%clk 0:00:06]}  Qb2# {[%clk 0:00:08]} 0-1


[Site "https://www.chess.com"]

[Event "Titled Tuesday Blitz March 08 Late 2022"]
[White "Dounis, Alexandros"]
[Black "Rabineau, Clement"]
[WhiteFideId "4213238"]
[BlackFideId "628891"]
[WhiteElo "2204"]
[BlackElo "2237"]
[Result "1-0"]
[Round "06"]
[TimeControl "180+1"]
[Date "2022.03.09"]
[WhiteClock "0:00:15"]
[BlackClock "0:00:01"]

1. Nf3 {[%clk 0:03:00]}  d6 {[%clk 0:02:59]} 2. d4 {[%clk 0:03:00]}  g6 {[%clk 0:02:59]} 3. g3 {[%clk 0:02:59]}  Bg7 {[%clk 0:02:59]} 4. Bg2 {[%clk 0:03:00]}  f5 {[%clk 0:03:00]} 5. O-O {[%clk 0:03:01]}  Nf6 {[%clk 0:03:00]} 6. c4 {[%clk 0:03:00]}  O-O {[%clk 0:03:00]} 7. Nc3 {[%clk 0:02:59]}  Qe8 {[%clk 0:03:00]} 8. d5 {[%clk 0:02:54]}  Na6 {[%clk 0:02:56]} 9. Nd4 {[%clk 0:02:53]}  Bd7 {[%clk 0:02:47]} 10. f3 {[%clk 0:02:51]}  c6 {[%clk 0:02:42]} 11. Be3 {[%clk 0:02:48]}  Nc7 {[%clk 0:02:31]} 12. Qb3 {[%clk 0:02:41]}  Rb8 {[%clk 0:02:14]} 13. Bf2 {[%clk 0:02:33]}  a6 {[%clk 0:02:09]} 14. Qb6 {[%clk 0:02:29]}  Qd8 {[%clk 0:01:57]} 15. Rac1 {[%clk 0:02:04]}  c5 {[%clk 0:01:37]} 16. Nc2 {[%clk 0:01:55]}  Na8 {[%clk 0:01:30]} 17. Qxd8 {[%clk 0:01:49]}  Rfxd8 {[%clk 0:01:31]} 18. b4 {[%clk 0:01:48]}  Nb6 {[%clk 0:00:45]} 19. bxc5 {[%clk 0:01:42]}  Nxc4 {[%clk 0:00:45]} 20. cxd6 {[%clk 0:01:25]}  exd6 {[%clk 0:00:40]} 21. Ne3 {[%clk 0:01:11]}  Nxe3 {[%clk 0:00:28]} 22. Bxe3 {[%clk 0:01:11]}  Re8 {[%clk 0:00:22]} 23. Bf4 {[%clk 0:01:09]}  Rbc8 {[%clk 0:00:16]} 24. Bxd6 {[%clk 0:01:07]}  Nh5 {[%clk 0:00:13]} 25. Bb4 {[%clk 0:00:48]}  Bd4+ {[%clk 0:00:14]} 26. Kh1 {[%clk 0:00:46]}  b6 {[%clk 0:00:13]} 27. Rfd1 {[%clk 0:00:40]}  Bxc3 {[%clk 0:00:12]} 28. Rxc3 {[%clk 0:00:35]}  Rxc3 {[%clk 0:00:11]} 29. Bxc3 {[%clk 0:00:35]}  Rxe2 {[%clk 0:00:12]} 30. a3 {[%clk 0:00:29]}  Re3 {[%clk 0:00:09]} 31. Bb4 {[%clk 0:00:25]}  a5 {[%clk 0:00:09]} 32. Be7 {[%clk 0:00:23]}  f4 {[%clk 0:00:08]} 33. g4 {[%clk 0:00:22]}  Ng7 {[%clk 0:00:07]} 34. Bg5 {[%clk 0:00:19]}  Rxa3 {[%clk 0:00:05]} 35. Bxf4 {[%clk 0:00:20]}  Ne8 {[%clk 0:00:05]} 36. d6 {[%clk 0:00:15]}  b5 {[%clk 0:00:06]} 37. Bf1 {[%clk 0:00:15]}  b4 {[%clk 0:00:06]} 38. Bc4+ {[%clk 0:00:15]}  Kf8 {[%clk 0:00:05]} 39. Bh6+ {[%clk 0:00:15]}  Ng7 {[%clk 0:00:05]} 40. Re1 {[%clk 0:00:15]}  Rxf3 {[%clk 0:00:04]} 41. Re7 {[%clk 0:00:15]}  Bc6 {[%clk 0:00:01]} 42. Bxg7# {[%clk 0:00:15]} 1-0


[Site "https://www.chess.com"]

[Event "Titled Tuesday Blitz March 08 Late 2022"]
[White "Erdogdu, Mert"]
[Black "Petrovic, Aleksa"]
[WhiteFideId "6301495"]
[BlackFideId "967629"]
[WhiteElo "2485"]
[BlackElo "2245"]
[Result "1-0"]
[Round "06"]
[TimeControl "180+1"]
[Date "2022.03.08"]
[WhiteClock "0:00:05"]
[BlackClock "0:00:03"]

1. e4 {[%clk 0:03:00]}  c5 {[%clk 0:02:59]} 2. Nf3 {[%clk 0:03:00]}  d6 {[%clk 0:02:59]} 3. d4 {[%clk 0:03:01]}  cxd4 {[%clk 0:02:59]} 4. Nxd4 {[%clk 0:03:02]}  Nf6 {[%clk 0:03:00]} 5. Nc3 {[%clk 0:03:02]}  a6 {[%clk 0:03:00]} 6. Be3 {[%clk 0:03:03]}  e6 {[%clk 0:02:57]} 7. f3 {[%clk 0:03:02]}  Be7 {[%clk 0:02:56]} 8. Qd2 {[%clk 0:03:02]}  b5 {[%clk 0:02:55]} 9. O-O-O {[%clk 0:03:01]}  Bb7 {[%clk 0:02:48]} 10. g4 {[%clk 0:02:54]}  Nc6 {[%clk 0:02:44]} 11. g5 {[%clk 0:02:53]}  Nd7 {[%clk 0:02:44]} 12. h4 {[%clk 0:02:52]}  Nb6 {[%clk 0:02:18]} 13. Kb1 {[%clk 0:02:47]}  b4 {[%clk 0:02:12]} 14. Nxc6 {[%clk 0:01:52]}  Bxc6 {[%clk 0:02:08]} 15. Qd4 {[%clk 0:01:52]}  bxc3 {[%clk 0:01:58]} 16. Qxg7 {[%clk 0:01:52]}  Kd7 {[%clk 0:01:24]} 17. Qxf7 {[%clk 0:01:35]}  Rf8 {[%clk 0:01:23]} 18. Qxh7 {[%clk 0:01:34]}  Rxf3 {[%clk 0:01:20]} 19. Bd4 {[%clk 0:01:24]}  cxb2 {[%clk 0:00:58]} 20. Bh3 {[%clk 0:01:22]}  Nc4 {[%clk 0:00:52]} 21. Qg6 {[%clk 0:00:21]}  Na3+ {[%clk 0:00:23]} 22. Kxb2 {[%clk 0:00:20]}  Nc4+ {[%clk 0:00:24]} 23. Ka1 {[%clk 0:00:19]}  Rxh3 {[%clk 0:00:17]} 24. Rxh3 {[%clk 0:00:19]}  Qa5 {[%clk 0:00:17]} 25. Rb3 {[%clk 0:00:17]}  e5 {[%clk 0:00:13]} 26. Bc3 {[%clk 0:00:14]}  Qc5 {[%clk 0:00:14]} 27. Qf5+ {[%clk 0:00:13]}  Kc7 {[%clk 0:00:13]} 28. Qf7 {[%clk 0:00:11]}  d5 {[%clk 0:00:09]} 29. exd5 {[%clk 0:00:10]}  Ba4 {[%clk 0:00:08]} 30. d6+ {[%clk 0:00:10]}  Nxd6 {[%clk 0:00:04]} 31. Qxe7+ {[%clk 0:00:10]}  Kc6 {[%clk 0:00:04]} 32. Bb4 {[%clk 0:00:07]}  Qxc2 {[%clk 0:00:03]} 33. Rxd6+ {[%clk 0:00:06]}  Kb5 {[%clk 0:00:03]} 34. Qb7+ {[%clk 0:00:05]}  Kc4 {[%clk 0:00:03]} 35. Qd5# {[%clk 0:00:05]} 1-0


[Site "https://www.chess.com"]

[Event "Titled Tuesday Blitz March 08 Late 2022"]
[White "Gadimbayli, Abdulla"]
[Black "Khabinets, Ivan"]
[WhiteFideId "13404938"]
[BlackFideId "14115980"]
[WhiteElo "2311"]
[BlackElo "2114"]
[Result "1-0"]
[Round "06"]
[TimeControl "180+1"]
[Date "2022.03.08"]
[WhiteClock "0:00:11"]
[BlackClock "0:00:26"]

1. e4 {[%clk 0:02:47]}  c5 {[%clk 0:03:00]} 2. Nf3 {[%clk 0:01:43]}  d6 {[%clk 0:03:00]} 3. d4 {[%clk 0:01:43]}  cxd4 {[%clk 0:03:00]} 4. Nxd4 {[%clk 0:01:43]}  e5 {[%clk 0:03:00]} 5. Nf5 {[%clk 0:01:43]}  Nf6 {[%clk 0:03:00]} 6. Nc3 {[%clk 0:01:43]}  Nxe4 {[%clk 0:03:00]} 7. Nxg7+ {[%clk 0:01:43]}  Bxg7 {[%clk 0:03:00]} 8. Nxe4 {[%clk 0:01:44]}  d5 {[%clk 0:03:01]} 9. Ng3 {[%clk 0:01:44]}  O-O {[%clk 0:03:00]} 10. Be2 {[%clk 0:01:41]}  f5 {[%clk 0:02:59]} 11. O-O {[%clk 0:01:41]}  Be6 {[%clk 0:02:53]} 12. Nh5 {[%clk 0:01:40]}  Nc6 {[%clk 0:02:49]} 13. Qd3 {[%clk 0:01:34]}  f4 {[%clk 0:02:39]} 14. Nxg7 {[%clk 0:01:26]}  Kxg7 {[%clk 0:02:40]} 15. b3 {[%clk 0:01:24]}  Qf6 {[%clk 0:02:33]} 16. Bb2 {[%clk 0:01:22]}  Rac8 {[%clk 0:02:33]} 17. a3 {[%clk 0:01:18]}  d4 {[%clk 0:02:04]} 18. Bf3 {[%clk 0:01:12]}  Bf5 {[%clk 0:02:03]} 19. Be4 {[%clk 0:00:56]}  Qg6 {[%clk 0:01:58]} 20. Rfe1 {[%clk 0:00:52]}  Bxe4 {[%clk 0:01:47]} 21. Rxe4 {[%clk 0:00:44]}  Rf5 {[%clk 0:01:38]} 22. Rae1 {[%clk 0:00:43]}  Rd8 {[%clk 0:01:32]} 23. b4 {[%clk 0:00:39]}  a6 {[%clk 0:01:28]} 24. Qb3 {[%clk 0:00:36]}  f3 {[%clk 0:01:11]} 25. g3 {[%clk 0:00:36]}  Rh5 {[%clk 0:01:10]} 26. a4 {[%clk 0:00:21]}  b5 {[%clk 0:01:08]} 27. axb5 {[%clk 0:00:21]}  axb5 {[%clk 0:01:09]} 28. Qxf3 {[%clk 0:00:21]}  Rf8 {[%clk 0:01:03]} 29. Qd3 {[%clk 0:00:21]}  Qf6 {[%clk 0:00:54]} 30. R1e2 {[%clk 0:00:19]}  Rf5 {[%clk 0:00:53]} 31. Qd2 {[%clk 0:00:06]}  Nxb4 {[%clk 0:00:51]} 32. Rxe5 {[%clk 0:00:06]}  Rxe5 {[%clk 0:00:41]} 33. Rxe5 {[%clk 0:00:07]}  Nc6 {[%clk 0:00:31]} 34. Rxb5 {[%clk 0:00:07]}  Re8 {[%clk 0:00:24]} 35. Qg5+ {[%clk 0:00:06]}  Qxg5 {[%clk 0:00:24]} 36. Rxg5+ {[%clk 0:00:06]}  Kf6 {[%clk 0:00:24]} 37. Rc5 {[%clk 0:00:07]}  Re6 {[%clk 0:00:22]} 38. Rd5 {[%clk 0:00:07]}  Re2 {[%clk 0:00:20]} 39. Rd6+ {[%clk 0:00:07]}  Re6 {[%clk 0:00:19]} 40. Bxd4+ {[%clk 0:00:08]}  Nxd4 {[%clk 0:00:19]} 41. Rxd4 {[%clk 0:00:09]}  Re1+ {[%clk 0:00:20]} 42. Kg2 {[%clk 0:00:09]}  Re2 {[%clk 0:00:20]} 43. c4 {[%clk 0:00:09]}  Rc2 {[%clk 0:00:20]} 44. Rf4+ {[%clk 0:00:10]}  Kg6 {[%clk 0:00:20]} 45. h4 {[%clk 0:00:09]}  h6 {[%clk 0:00:21]} 46. Kf3 {[%clk 0:00:09]}  Rc3+ {[%clk 0:00:21]} 47. Ke2 {[%clk 0:00:10]}  Ra3 {[%clk 0:00:22]} 48. Kd2 {[%clk 0:00:10]}  Ra8 {[%clk 0:00:23]} 49. Kc3 {[%clk 0:00:10]}  Re8 {[%clk 0:00:23]} 50. c5 {[%clk 0:00:11]}  Re1 {[%clk 0:00:24]} 51. Kc4 {[%clk 0:00:11]}  Rc1+ {[%clk 0:00:25]} 52. Kd5 {[%clk 0:00:11]}  Rc2 {[%clk 0:00:25]} 53. c6 {[%clk 0:00:11]}  Rxf2 {[%clk 0:00:26]} 54. Rxf2 {[%clk 0:00:11]} 1-0


[Site "https://www.chess.com"]

[Event "Titled Tuesday Blitz March 08 Late 2022"]
[White "Gerbelli Neto, Eduardo"]
[Black "Ladan, Nicholas"]
[WhiteFideId "2103281"]
[BlackFideId "30918855"]
[WhiteElo "2178"]
[BlackElo "2167"]
[Result "1-0"]
[Round "06"]
[TimeControl "180+1"]
[Date "2022.03.09"]
[WhiteClock "0:00:11"]
[BlackClock "0:01:21"]

1. e4 {[%clk 0:03:00]}  e5 {[%clk 0:03:00]} 2. Nc3 {[%clk 0:02:59]}  Nc6 {[%clk 0:03:00]} 3. Bc4 {[%clk 0:02:59]}  Nf6 {[%clk 0:02:59]} 4. Nf3 {[%clk 0:02:58]}  Nxe4 {[%clk 0:02:59]} 5. Bxf7+ {[%clk 0:02:58]}  Kxf7 {[%clk 0:03:00]} 6. Nxe4 {[%clk 0:02:59]}  d5 {[%clk 0:03:00]} 7. Neg5+ {[%clk 0:02:57]}  Kg8 {[%clk 0:03:00]} 8. d4 {[%clk 0:02:43]}  e4 {[%clk 0:02:56]} 9. Ne5 {[%clk 0:02:42]}  Nxe5 {[%clk 0:02:54]} 10. dxe5 {[%clk 0:02:43]}  h6 {[%clk 0:02:54]} 11. Nh3 {[%clk 0:02:43]}  Bxh3 {[%clk 0:02:40]} 12. gxh3 {[%clk 0:02:44]}  c6 {[%clk 0:02:40]} 13. Qg4 {[%clk 0:02:35]}  Qe7 {[%clk 0:02:36]} 14. Qg3 {[%clk 0:02:25]}  Re8 {[%clk 0:02:35]} 15. Bf4 {[%clk 0:02:25]}  Kh7 {[%clk 0:02:32]} 16. h4 {[%clk 0:02:19]}  Rg8 {[%clk 0:02:21]} 17. O-O-O {[%clk 0:02:09]}  Qe6 {[%clk 0:02:21]} 18. Rhg1 {[%clk 0:02:01]}  Be7 {[%clk 0:02:18]} 19. h5 {[%clk 0:01:56]}  Ref8 {[%clk 0:02:16]} 20. Qe3 {[%clk 0:01:23]}  Rf5 {[%clk 0:02:12]} 21. Rg6 {[%clk 0:01:14]}  Qf7 {[%clk 0:02:05]} 22. e6 {[%clk 0:00:38]}  Qf8 {[%clk 0:02:04]} 23. Rg4 {[%clk 0:00:25]}  Rxh5 {[%clk 0:02:03]} 24. Rdg1 {[%clk 0:00:25]}  Qf5 {[%clk 0:01:53]} 25. Qxa7 {[%clk 0:00:23]}  Qxe6 {[%clk 0:01:42]} 26. Qxb7 {[%clk 0:00:22]}  Bf6 {[%clk 0:01:43]} 27. Rg6 {[%clk 0:00:11]}  Rf5 {[%clk 0:01:30]} 28. Be3 {[%clk 0:00:11]}  Qe5 {[%clk 0:01:21]} 29. Rxh6# {[%clk 0:00:11]} 1-0


[Site "https://www.chess.com"]

[Event "Titled Tuesday Blitz March 08 Late 2022"]
[White "Golubka, Petro"]
[Black "Sliwicki, Damian"]
[WhiteFideId "14114224"]
[BlackFideId "1127128"]
[WhiteElo "2346"]
[BlackElo "2067"]
[Result "1-0"]
[Round "06"]
[TimeControl "180+1"]
[Date "2022.03.09"]
[WhiteClock "0:01:37"]
[BlackClock "0:00:23"]

1. d4 {[%clk 0:02:50]}  Nf6 {[%clk 0:02:57]} 2. Nf3 {[%clk 0:02:50]}  d5 {[%clk 0:02:57]} 3. c4 {[%clk 0:02:50]}  e6 {[%clk 0:02:56]} 4. Nc3 {[%clk 0:02:50]}  Bb4 {[%clk 0:02:53]} 5. cxd5 {[%clk 0:02:49]}  exd5 {[%clk 0:02:48]} 6. a3 {[%clk 0:02:48]}  Bxc3+ {[%clk 0:02:48]} 7. bxc3 {[%clk 0:02:49]}  O-O {[%clk 0:02:47]} 8. Bg5 {[%clk 0:02:48]}  h6 {[%clk 0:02:38]} 9. Bh4 {[%clk 0:02:44]}  c6 {[%clk 0:02:27]} 10. e3 {[%clk 0:02:41]}  Bf5 {[%clk 0:02:15]} 11. Bd3 {[%clk 0:02:38]}  Bxd3 {[%clk 0:02:14]} 12. Qxd3 {[%clk 0:02:39]}  Nbd7 {[%clk 0:02:14]} 13. O-O {[%clk 0:02:37]}  Re8 {[%clk 0:02:12]} 14. a4 {[%clk 0:02:31]}  Qa5 {[%clk 0:02:11]} 15. Rfb1 {[%clk 0:02:28]}  Rab8 {[%clk 0:02:04]} 16. Bg3 {[%clk 0:02:27]}  Ne4 {[%clk 0:01:57]} 17. Bxb8 {[%clk 0:02:24]}  Rxb8 {[%clk 0:01:57]} 18. c4 {[%clk 0:02:23]}  Ndf6 {[%clk 0:01:55]} 19. h3 {[%clk 0:02:15]}  Qc7 {[%clk 0:01:47]} 20. Ne5 {[%clk 0:02:11]}  Re8 {[%clk 0:01:41]} 21. a5 {[%clk 0:02:10]}  dxc4 {[%clk 0:01:36]} 22. Nxc4 {[%clk 0:02:08]}  Nd5 {[%clk 0:01:16]} 23. Ra3 {[%clk 0:02:03]}  b5 {[%clk 0:01:00]} 24. axb6 {[%clk 0:02:00]}  axb6 {[%clk 0:01:01]} 25. Ne5 {[%clk 0:01:58]}  Ng5 {[%clk 0:00:46]} 26. Qc4 {[%clk 0:01:50]}  Kh7 {[%clk 0:00:39]} 27. Qxc6 {[%clk 0:01:48]}  Qe7 {[%clk 0:00:38]} 28. Rab3 {[%clk 0:01:43]}  Nf6 {[%clk 0:00:32]} 29. Rxb6 {[%clk 0:01:40]}  Nfe4 {[%clk 0:00:23]} 30. h4 {[%clk 0:01:37]} 1-0


[Site "https://www.chess.com"]

[Event "Titled Tuesday Blitz March 08 Late 2022"]
[White "Hryshchenko, Kamila"]
[Black "Hollan, Martin"]
[WhiteFideId "14147491"]
[BlackFideId "360937"]
[WhiteElo "2518"]
[BlackElo "2567"]
[Result "1-0"]
[Round "06"]
[TimeControl "180+1"]
[Date "2022.03.09"]
[WhiteClock "0:00:35"]
[BlackClock "0:00:02"]

1. e4 {[%clk 0:03:00]}  e5 {[%clk 0:02:57]} 2. Nf3 {[%clk 0:03:01]}  Nc6 {[%clk 0:02:58]} 3. Nc3 {[%clk 0:03:00]}  Nf6 {[%clk 0:02:58]} 4. h3 {[%clk 0:03:00]}  Be7 {[%clk 0:02:57]} 5. d4 {[%clk 0:03:00]}  exd4 {[%clk 0:02:56]} 6. Nxd4 {[%clk 0:03:01]}  O-O {[%clk 0:02:56]} 7. Nxc6 {[%clk 0:03:00]}  bxc6 {[%clk 0:02:49]} 8. Bd3 {[%clk 0:02:58]}  d5 {[%clk 0:02:47]} 9. O-O {[%clk 0:02:58]}  Be6 {[%clk 0:02:46]} 10. Qf3 {[%clk 0:02:56]}  Bb4 {[%clk 0:02:35]} 11. exd5 {[%clk 0:02:53]}  cxd5 {[%clk 0:02:31]} 12. Nb5 {[%clk 0:02:53]}  Bd7 {[%clk 0:02:21]} 13. Bg5 {[%clk 0:02:45]}  Bxb5 {[%clk 0:02:14]} 14. Bxb5 {[%clk 0:02:44]}  Rb8 {[%clk 0:02:14]} 15. Bd3 {[%clk 0:02:42]}  Bd6 {[%clk 0:02:10]} 16. b3 {[%clk 0:02:36]}  c6 {[%clk 0:02:09]} 17. Rfe1 {[%clk 0:02:34]}  h6 {[%clk 0:02:08]} 18. Bxf6 {[%clk 0:02:33]}  Qxf6 {[%clk 0:02:07]} 19. Qxf6 {[%clk 0:02:33]}  gxf6 {[%clk 0:02:07]} 20. Bf5 {[%clk 0:02:29]}  c5 {[%clk 0:01:58]} 21. Rad1 {[%clk 0:02:28]}  d4 {[%clk 0:01:58]} 22. g3 {[%clk 0:02:25]}  Rfe8 {[%clk 0:01:57]} 23. f4 {[%clk 0:02:20]}  Kf8 {[%clk 0:01:55]} 24. Kf2 {[%clk 0:02:18]}  a5 {[%clk 0:01:54]} 25. Kf3 {[%clk 0:02:12]}  a4 {[%clk 0:01:45]} 26. bxa4 {[%clk 0:02:02]}  Rb2 {[%clk 0:01:42]} 27. Rxe8+ {[%clk 0:01:55]}  Kxe8 {[%clk 0:01:42]} 28. Ke4 {[%clk 0:01:56]}  Rxa2 {[%clk 0:01:25]} 29. Kd5 {[%clk 0:01:56]}  Bc7 {[%clk 0:01:16]} 30. Rb1 {[%clk 0:01:47]}  Rxa4 {[%clk 0:01:11]} 31. Rb7 {[%clk 0:01:47]}  Kd8 {[%clk 0:01:11]} 32. Bd3 {[%clk 0:01:44]}  Ra5 {[%clk 0:00:50]} 33. Kc6 {[%clk 0:01:41]}  c4 {[%clk 0:00:31]} 34. Bxc4 {[%clk 0:01:41]}  Ra4 {[%clk 0:00:21]} 35. Bd3 {[%clk 0:01:40]}  Ra3 {[%clk 0:00:17]} 36. Rb4 {[%clk 0:01:23]}  Rc3+ {[%clk 0:00:14]} 37. Kd5 {[%clk 0:01:23]}  Ba5 {[%clk 0:00:11]} 38. Rb5 {[%clk 0:01:19]}  Bc7 {[%clk 0:00:09]} 39. Kxd4 {[%clk 0:01:20]}  Rc6 {[%clk 0:00:09]} 40. Rh5 {[%clk 0:01:16]}  Ke7 {[%clk 0:00:08]} 41. Rxh6 {[%clk 0:01:16]}  Rd6+ {[%clk 0:00:09]} 42. Ke3 {[%clk 0:01:15]}  Re6+ {[%clk 0:00:08]} 43. Kf3 {[%clk 0:01:14]}  Bb6 {[%clk 0:00:08]} 44. Rh8 {[%clk 0:01:06]}  Re3+ {[%clk 0:00:08]} 45. Kg4 {[%clk 0:01:06]}  Ba5 {[%clk 0:00:08]} 46. Bb5 {[%clk 0:01:01]}  Kd6 {[%clk 0:00:07]} 47. Re8 {[%clk 0:00:50]}  Rxe8 {[%clk 0:00:07]} 48. Bxe8 {[%clk 0:00:51]}  Ke7 {[%clk 0:00:07]} 49. Bc6 {[%clk 0:00:48]}  Be1 {[%clk 0:00:07]} 50. Be4 {[%clk 0:00:43]}  Bf2 {[%clk 0:00:05]} 51. h4 {[%clk 0:00:44]}  Kf8 {[%clk 0:00:05]} 52. c4 {[%clk 0:00:40]}  Kg7 {[%clk 0:00:05]} 53. h5 {[%clk 0:00:40]}  Kh6 {[%clk 0:00:05]} 54. Bd5 {[%clk 0:00:39]}  f5+ {[%clk 0:00:04]} 55. Kxf5 {[%clk 0:00:38]}  Bxg3 {[%clk 0:00:04]} 56. Bxf7 {[%clk 0:00:37]}  Bf2 {[%clk 0:00:03]} 57. Bg6 {[%clk 0:00:35]}  Kg7 {[%clk 0:00:03]} 58. Ke5 {[%clk 0:00:35]}  Be3 {[%clk 0:00:02]} 59. f5 {[%clk 0:00:35]} 1-0


[Site "https://www.chess.com"]